bitfinex-derivatives/quotes_BTCF0:USTF0_20250527
["timestamp","ask_amount","ask_price","bid_price","bid_amount"]
[1748308896606,1.12880202,107910.0,107900.0,0.30777242]
[1748308896904,0.04529682,107910.0,107900.0,0.98465242]
[1748308897102,0.0554923,107930.0,107920.0,0.1852681]
[1748308897303,0.00013879,107930.0,107920.0,1.18872317]
[1748308897502,0.00013879,107930.0,107920.0,1.64217917]
[1748308897702,0.00013879,107930.0,107920.0,0.4979241]
[1748308897898,0.60250969,107930.0,107920.0,1.0821081]
[1748308898100,0.36093879,107930.0,107920.0,0.4052681]
[1748308898296,0.00013879,107930.0,107920.0,1.5355641]
[1748308898600,0.00013879,107930.0,107920.0,1.5356841]
[1748308898806,0.00013879,107930.0,107920.0,1.2929841]
[1748308899108,0.00013879,107930.0,107920.0,1.6537841]
[1748308899500,0.00013879,107930.0,107920.0,1.2929841]
[1748308899903,0.00013879,107930.0,107920.0,1.6537841]
[1748308900102,0.00013879,107930.0,107920.0,1.6557841]
[1748308900304,0.00013879,107930.0,107920.0,1.7124841]
[1748308900807,0.00013879,107930.0,107920.0,1.2629481]
[1748308901009,0.00013879,107930.0,107920.0,1.6237481]
[1748308901915,0.00013879,107930.0,107920.0,0.586188]
[1748308902103,0.00013879,107930.0,107920.0,1.262948]
[1748308902305,0.00013879,107930.0,107920.0,1.623748]
[1748308902512,0.00013879,107930.0,107920.0,1.716404]
[1748308902705,9e-08,107930.0,107920.0,1.605604]
[1748308902900,0.01862767,107950.0,107940.0,0.1852337]
[1748308903203,0.00139131,107960.0,107950.0,0.1852165]
[1748308903507,0.3608,107970.0,107960.0,0.1851994]
[1748308903815,0.77784,107990.0,107980.0,0.1851651]
[1748308904011,0.96261612,107990.0,107980.0,1.12258866]
[1748308904207,0.77746822,107990.0,107980.0,1.17848866]
[1748308904512,0.98257612,107990.0,107980.0,1.17848866]
[1748308905217,0.77742822,107990.0,107980.0,1.17848866]
[1748308905400,0.6431479,107990.0,107980.0,1.17848866]
[1748308905605,1.0039479,107990.0,107980.0,1.17848866]
[1748308906011,0.8188,107990.0,107980.0,1.17848866]
[1748308906201,0.7798,107990.0,107980.0,1.17848866]
[1748308906508,0.002,107990.0,107980.0,1.23898866]
[1748308906706,0.002,107990.0,107980.0,1.29858866]
[1748308906917,0.002,107990.0,107980.0,1.75199265]
[1748308907116,0.10013879,108000.0,107990.0,0.185148]
[1748308907319,0.3608,108020.0,107990.0,0.185148]
[1748308907320,0.3608,108020.0,108010.0,0.1851137]
[1748308907615,0.3608,108020.0,108010.0,1.11204548]
[1748308907616,0.7778,108020.0,108010.0,1.11204548]
[1748308907911,0.3608,108020.0,108010.0,1.23094548]
[1748308908115,0.6635794,108030.0,108020.0,0.1850965]
[1748308908312,0.36093879,108040.0,108030.0,0.1850794]
[1748308908513,1.14202109,108040.0,108030.0,0.55425118]
[1748308908705,1.14202109,108040.0,108030.0,0.10276308]
[1748308908905,1.7845851,108040.0,108030.0,0.02049178]
[1748308909318,1.5345851,108040.0,108030.0,0.02049178]
[1748308909921,1.02510109,108040.0,108030.0,0.29557118]
[1748308910215,0.75510099,108040.0,108030.0,0.29557118]
[1748308910418,0.78510099,108040.0,108030.0,0.29557118]
[1748308910613,1.37459606,108040.0,108030.0,0.29557118]
[1748308910810,0.5458966,108020.0,108010.0,0.00013879]
[1748308911010,1.84619167,108020.0,108010.0,0.00013879]
[1748308911208,1.90349167,108020.0,108010.0,0.09025879]
[1748308911413,1.5508366,108020.0,108010.0,0.10025879]
[1748308911618,0.0462809,108010.0,107980.0,8e-08]
[1748308911816,0.462913,107980.0,107920.0,0.01105949]
[1748308912018,0.36748939,107920.0,107900.0,0.1564]
[1748308912216,1.13558037,107910.0,107900.0,0.1564]
[1748308912416,0.89645708,107910.0,107900.0,0.2764]
[1748308912716,1.48595215,107910.0,107900.0,0.07169238]
[1748308913026,1.48595215,107910.0,107900.0,0.07157238]
[1748308913215,1.31329708,107910.0,107900.0,0.07169238]
[1748308913519,1.48595215,107910.0,107900.0,0.07169238]
[1748308913724,1.48595215,107910.0,107900.0,0.25699488]
[1748308913911,1.48995215,107910.0,107900.0,0.37179488]
[1748308914110,0.36917178,107910.0,107900.0,0.64179488]
[1748308914508,0.78609178,107910.0,107900.0,0.64179488]
[1748308915017,0.36917178,107910.0,107900.0,0.64179488]
[1748308915317,0.78609178,107910.0,107900.0,0.64179488]
[1748308915520,0.36917178,107910.0,107900.0,0.64179488]
[1748308915711,0.78609178,107910.0,107900.0,0.64179488]
[1748308916316,0.78409178,107910.0,107900.0,0.64179488]
[1748308916514,0.36717178,107910.0,107900.0,0.64179488]
[1748308916710,0.36317178,107910.0,107900.0,0.64179488]
[1748308916919,0.36617178,107910.0,107900.0,0.70369488]
[1748308917119,0.36517178,107910.0,107900.0,0.79637088]
[1748308917317,0.15131048,107920.0,107910.0,0.1852853]
[1748308917524,0.15131048,107920.0,107910.0,1.1586853]
[1748308917923,0.15131048,107920.0,107910.0,1.2513493]
[1748308918121,0.00013879,107920.0,107910.0,1.2513493]
[1748308918316,1e-08,107920.0,107910.0,1.6121493]
[1748308919121,1e-08,107920.0,107910.0,2.9129493]
[1748308919526,1e-08,107920.0,107910.0,2.9139493]
[1748308919719,0.00037178,107950.0,107940.0,0.1852337]
[1748308919919,0.00037178,107950.0,107940.0,1.4720337]
[1748308920118,0.00037178,107950.0,107940.0,1.5301337]
[1748308920628,1.47868345,107950.0,107940.0,0.1474569]
[1748308920827,0.3608,107940.0,107910.0,0.212]
[1748308921124,0.0463366,107880.0,107840.0,0.07391511]
[1748308921328,0.5461883,107850.0,107840.0,0.20765191]
[1748308921516,0.19,107850.0,107840.0,0.39305741]
[1748308921825,0.00024823,107850.0,107840.0,0.65939881]
[1748308922231,0.00024823,107850.0,107840.0,1.02031881]
[1748308922432,0.0926743,107880.0,107840.0,1.02031881]
[1748308922433,0.77788,107880.0,107860.0,0.2316951]
[1748308922726,0.86588847,107880.0,107870.0,0.00049646]
[1748308922920,0.68055177,107880.0,107870.0,0.44585036]
[1748308923225,0.47055177,107880.0,107870.0,0.57944837]
[1748308923620,0.63893369,107890.0,107880.0,0.1853367]
[1748308923621,0.18545989,107890.0,107880.0,0.1853367]
[1748308923817,0.00013879,107890.0,107880.0,0.4453367]
[1748308924014,0.60253829,107890.0,107880.0,0.56539791]
[1748308924213,0.06013879,107890.0,107880.0,0.56539791]
[1748308924428,0.41721879,107890.0,107880.0,0.57918294]
[1748308924626,0.77801879,107890.0,107880.0,0.57918294]
[1748308924929,0.41725879,107890.0,107880.0,0.57918294]
[1748308925331,0.41725879,107890.0,107880.0,1.59618294]
[1748308925332,0.00013879,107890.0,107880.0,1.59618294]
[1748308925532,0.00013879,107890.0,107880.0,1.65518294]
[1748308926430,0.00113879,107890.0,107880.0,1.29438294]
[1748308926623,0.00113879,107890.0,107880.0,1.65518294]
[1748308927127,1.29528279,107890.0,107880.0,0.001]
[1748308927433,0.0463567,107830.0,107810.0,0.2951127]
[1748308927729,0.77841646,107820.0,107810.0,0.47467745]
[1748308927926,0.88841646,107820.0,107810.0,0.47467745]
[1748308928227,1.07385636,107820.0,107810.0,0.29862887]
[1748308928423,1.07425636,107820.0,107810.0,0.29850887]
[1748308928731,1.07455636,107820.0,107810.0,0.29362887]
[1748308928934,1.07455636,107820.0,107810.0,0.2305771]
[1748308929231,0.88911646,107820.0,107810.0,0.2445771]
[1748308929420,1.07455626,107820.0,107810.0,0.04912]
[1748308929627,1.07455626,107820.0,107810.0,0.05912]
[1748308929823,1.27455626,107820.0,107810.0,0.04912]
[1748308930028,1.63535626,107820.0,107810.0,0.045]
[1748308930231,1.82392973,107820.0,107810.0,0.05112]
[1748308930532,1.72910826,107820.0,107810.0,0.021]
[1748308930830,1.91668173,107820.0,107810.0,0.01612]
[1748308931016,1.91668173,107820.0,107810.0,0.02212]
[1748308931422,1.91768173,107820.0,107810.0,0.01612]
[1748308931821,2.16768173,107820.0,107810.0,0.01612]
[1748308932031,2.16668173,107820.0,107810.0,0.01]
[1748308932228,2.16668173,107820.0,107810.0,0.01412]
[1748308932432,2.16668173,107820.0,107810.0,0.014]
[1748308932626,2.16668173,107820.0,107810.0,0.01412]
[1748308933026,2.16668173,107820.0,107810.0,0.01012]
[1748308933218,2.16768173,107820.0,107810.0,0.01012]
[1748308933424,2.16768173,107820.0,107810.0,0.01]
[1748308933629,2.16768173,107820.0,107810.0,0.01012]
[1748308933821,2.16768173,107820.0,107810.0,0.00012]
[1748308934025,0.185457,107810.0,107800.0,0.07817189]
[1748308934228,0.897057,107810.0,107800.0,0.20817189]
[1748308934426,0.989817,107810.0,107800.0,0.07817189]
[1748308934629,0.1855258,107770.0,107760.0,0.1656874]
[1748308934830,0.1855775,107740.0,107730.0,0.1913921]
[1748308935128,2.64364278,107740.0,107730.0,0.19040031]
[1748308935327,2.89394278,107740.0,107730.0,0.19052031]
[1748308935544,1.10473181,107740.0,107730.0,0.4155948]
[1748308935731,0.41955181,107740.0,107730.0,0.4739148]
[1748308935937,1e-08,107740.0,107730.0,0.60372778]
[1748308936124,0.00013879,107750.0,107740.0,0.1855776]
[1748308936329,9e-08,107750.0,107740.0,0.3737776]
[1748308936528,0.3236711,107750.0,107740.0,0.92078148]
[1748308936725,0.3608,107790.0,107740.0,0.549]
[1748308936927,0.3608,107770.0,107760.0,0.09475268]
[1748308937125,0.3608,107770.0,107760.0,0.44027858]
[1748308937332,0.3608,107770.0,107760.0,0.40389288]
[1748308937636,0.3908,107770.0,107760.0,0.46209288]
[1748308937826,0.36159056,107780.0,107770.0,0.1855259]
[1748308938034,0.41757879,107780.0,107770.0,0.4037259]
[1748308938338,0.00013879,107780.0,107770.0,0.90508244]
[1748308938528,0.00013879,107780.0,107770.0,0.90533067]
[1748308939031,0.00013879,107780.0,107770.0,0.71980477]
[1748308939344,0.67308749,107780.0,107770.0,0.55902877]
[1748308939531,1.03388749,107780.0,107770.0,0.37362287]
[1748308939733,0.85137879,107780.0,107770.0,0.55914877]
[1748308939935,0.07313879,107780.0,107770.0,0.55914877]
[1748308940131,0.00313879,107780.0,107770.0,0.91994877]
[1748308940341,0.00313879,107780.0,107770.0,0.98324877]
[1748308940342,0.42061879,107780.0,107770.0,0.98324877]
[1748308940732,0.42361879,107780.0,107770.0,0.98324877]
[1748308941037,0.42361879,107780.0,107770.0,0.62244877]
[1748308941241,0.42361879,107780.0,107770.0,0.98324877]
[1748308942141,0.60912739,107780.0,107770.0,0.43692287]
[1748308942445,0.60912739,107780.0,107770.0,0.62232867]
[1748308942446,0.96992739,107780.0,107770.0,0.62232867]
[1748308942744,0.78441879,107780.0,107770.0,0.62244867]
[1748308942939,0.36693879,107780.0,107770.0,0.62244867]
[1748308943132,0.78141879,107780.0,107770.0,0.62244867]
[1748308943336,0.36493879,107780.0,107770.0,0.62244867]
[1748308943536,0.42161879,107780.0,107770.0,0.62244867]
[1748308943736,0.41558796,107780.0,107770.0,0.62244867]
[1748308944137,0.41558796,107780.0,107770.0,0.43692287]
[1748308944445,0.41558796,107780.0,107770.0,0.62232867]
[1748308944646,0.56193449,107800.0,107790.0,0.1854914]
[1748308944839,0.93398029,107800.0,107790.0,0.3454914]
[1748308945036,0.70230627,107800.0,107790.0,0.47578319]
[1748308945438,0.51683207,107800.0,107790.0,0.47578319]
[1748308945636,0.51683207,107800.0,107790.0,0.98089427]
[1748308945637,0.00176529,107800.0,107790.0,0.98089427]
[1748308945830,0.22428529,107800.0,107790.0,0.98089427]
[1748308946036,0.22428529,107800.0,107790.0,1.62417427]
[1748308946230,0.22428529,107800.0,107790.0,0.14927989]
[1748308946231,0.1884742,107800.0,107790.0,0.14927989]
[1748308946431,1.81773567,107800.0,107790.0,0.06953619]
[1748308946631,0.1855775,107740.0,107730.0,0.36092]
[1748308946832,0.1855775,107740.0,107730.0,0.24912821]
[1748308946833,1.23916108,107740.0,107730.0,0.24912821]
[1748308947043,2.06650108,107740.0,107730.0,1e-08]
[1748308947246,0.1856119,107720.0,107710.0,0.19090752]
[1748308947437,0.6964119,107720.0,107710.0,0.24090752]
[1748308947640,1.0333119,107720.0,107710.0,0.12102752]
[1748308947842,1.03430369,107720.0,107710.0,0.12208003]
[1748308948046,0.85430369,107720.0,107710.0,0.13208003]
[1748308948347,0.18099179,107720.0,107710.0,0.79741459]
[1748308948544,0.18660369,107720.0,107710.0,1.08989459]
[1748308948741,0.60412369,107720.0,107710.0,1.08989459]
[1748308948937,0.41851179,107720.0,107710.0,1.08989459]
[1748308949139,0.95587238,107720.0,107710.0,0.18907251]
[1748308949338,0.77026048,107720.0,107710.0,0.37458161]
[1748308949537,0.00013879,107730.0,107720.0,0.1856119]
[1748308949740,0.00013879,107730.0,107720.0,0.57496441]
[1748308949942,0.01461167,107740.0,107730.0,0.1855947]
[1748308950143,0.00099179,107740.0,107730.0,1.5128347]
[1748308950341,0.41764,107750.0,107740.0,0.1855711]
[1748308950555,0.41726822,107750.0,107740.0,1.53355466]
[1748308950750,0.96362842,107750.0,107740.0,0.48460905]
[1748308950948,0.41726822,107750.0,107740.0,1.31362645]
[1748308951147,0.51726822,107750.0,107740.0,1.67442645]
[1748308951350,0.36093879,107760.0,107750.0,0.1855602]
[1748308951648,0.00013879,107760.0,107750.0,0.50893198]
[1748308951841,0.41777879,107760.0,107750.0,0.64979747]
[1748308952154,0.00013879,107760.0,107750.0,0.64979747]
[1748308952353,0.3508,107780.0,107760.0,0.0927653]
[1748308952646,1.01108074,107790.0,107770.0,0.939946]
[1748308952848,0.77921354,107790.0,107780.0,0.24956101]
[1748308953152,0.00077354,107790.0,107780.0,0.8513528]
[1748308953350,0.41841354,107790.0,107780.0,0.4905528]
[1748308953651,0.41841354,107790.0,107780.0,0.5478528]
[1748308953853,0.00177354,107790.0,107780.0,0.9086528]
[1748308954152,0.41941354,107790.0,107780.0,0.5478528]
[1748308954352,0.41841354,107790.0,107780.0,0.5478528]
[1748308954655,0.41941354,107790.0,107780.0,0.9086528]
[1748308954843,0.00177354,107790.0,107780.0,0.9086528]
[1748308955043,0.00077354,107790.0,107780.0,0.9086528]
[1748308955248,0.00013879,107800.0,107790.0,0.1854913]
[1748308955455,0.41773879,107800.0,107790.0,0.27]
[1748308955748,0.41773879,107800.0,107790.0,0.10466518]
[1748308955749,0.96401289,107800.0,107790.0,0.10466518]
[1748308955954,1.07631289,107800.0,107790.0,0.10583769]
[1748308956451,0.18561289,107800.0,107790.0,0.29132899]
[1748308956646,0.15013879,107800.0,107790.0,0.29132899]
[1748308956842,0.84321289,107800.0,107790.0,0.40132899]
[1748308957147,0.84521289,107800.0,107790.0,0.40132899]
[1748308957342,0.84521289,107800.0,107790.0,0.21583769]
[1748308957548,0.61321289,107800.0,107790.0,0.21583769]
[1748308957852,0.01113879,107800.0,107790.0,0.21683769]
[1748308958054,0.00113879,107800.0,107790.0,0.40232909]
[1748308958247,0.41873879,107800.0,107790.0,0.40232909]
[1748308958450,0.00113879,107800.0,107790.0,0.59062909]
[1748308958755,0.36244132,107820.0,107810.0,0.1854569]
[1748308959047,0.36244132,107820.0,107810.0,0.43712942]
[1748308959260,0.54788102,107820.0,107810.0,0.3751443]
[1748308959553,1.06548102,107820.0,107810.0,0.2451443]
[1748308959747,1.46008102,107820.0,107810.0,0.08171323]
[1748308960050,1.55283302,107820.0,107810.0,0.04392913]
[1748308960352,1.99140649,107820.0,107810.0,0.01548993]
[1748308960552,1.99140649,107820.0,107810.0,0.10560993]
[1748308960748,1.91710397,107820.0,107810.0,0.10548993]
[1748308960956,1.91710397,107820.0,107810.0,0.10560993]
[1748308961157,1.91806397,107820.0,107810.0,0.10560993]
[1748308961452,1.50050397,107820.0,107810.0,0.10560993]
[1748308961651,1.91806397,107820.0,107810.0,0.22490993]
[1748308961853,1.32055046,107820.0,107810.0,0.41036623]
[1748308962155,1.54811046,107820.0,107810.0,0.41036623]
[1748308962448,1.00187076,107820.0,107810.0,0.41036623]
[1748308962652,0.40431076,107820.0,107810.0,0.53036623]
[1748308962958,0.82187076,107820.0,107810.0,0.53036623]
[1748308963154,0.40431076,107820.0,107810.0,0.53036623]
[1748308963457,0.46107076,107820.0,107810.0,0.53036623]
[1748308963641,0.46107076,107820.0,107810.0,0.89116623]
[1748308964044,0.04351076,107820.0,107810.0,0.89116623]
[1748308964247,0.04351076,107820.0,107810.0,1.53440623]
[1748308964248,0.00364132,107820.0,107810.0,1.53440623]
[1748308964449,0.00364132,107820.0,107810.0,1.87715823]
[1748308964647,0.24074221,107850.0,107840.0,0.1854047]
[1748308964855,0.47287351,107850.0,107840.0,0.4454047]
[1748308965051,0.05535351,107850.0,107840.0,0.5648047]
[1748308965363,0.05535351,107850.0,107840.0,1.20903649]
[1748308965564,0.05535351,107850.0,107840.0,1.210089]
[1748308965855,0.05935351,107850.0,107840.0,1.663613]
[1748308966053,0.06435351,107850.0,107840.0,1.663613]
[1748308966252,0.009,107850.0,107840.0,1.663613]
[1748308966456,0.13917565,107890.0,107880.0,0.1853359]
[1748308966658,0.32424622,107890.0,107880.0,0.67762415]
[1748308966862,0.74176622,107890.0,107880.0,0.80142415]
[1748308967154,1.16248622,107890.0,107880.0,0.35528825]
[1748308967457,1.16248622,107890.0,107880.0,0.35634076]
[1748308967657,1.17248622,107890.0,107880.0,0.35734076]
[1748308967953,1.17248622,107890.0,107880.0,0.54267666]
[1748308968153,1.02891231,107890.0,107880.0,0.54267666]
[1748308968459,0.9835588,107890.0,107880.0,0.54267666]
[1748308968858,1.0662508,107890.0,107880.0,0.07345356]
[1748308969057,1.3600108,107890.0,107880.0,0.04397866]
[1748308969255,1.3660108,107890.0,107880.0,0.04397866]
[1748308969451,1.3660108,107890.0,107880.0,0.04385866]
[1748308969662,1.5334508,107890.0,107880.0,0.04385866]
[1748308969859,1.1160108,107890.0,107880.0,0.04385866]
[1748308970064,1.2507188,107890.0,107880.0,0.04385866]
[1748308970356,1.3307188,107890.0,107880.0,0.31931456]
[1748308970549,0.9133188,107890.0,107880.0,0.31931456]
[1748308970756,1.3307188,107890.0,107880.0,0.04397866]
[1748308971560,0.1854735,107800.0,107790.0,0.01090752]
[1748308971764,0.1855079,107780.0,107770.0,3e-08]
[1748308972062,0.1855423,107760.0,107750.0,0.09785465]
[1748308972261,1.31560233,107760.0,107750.0,0.13686286]
[1748308972464,0.06416003,107760.0,107750.0,0.23921415]
[1748308972655,0.41926003,107760.0,107750.0,0.23933415]
[1748308972959,0.86488233,107760.0,107750.0,0.0970946]
[1748308973258,0.00186003,107760.0,107750.0,0.3126541]
[1748308973758,0.96568233,107760.0,107750.0,0.29899945]
[1748308973959,0.41934003,107760.0,107750.0,0.29887945]
[1748308974163,0.00186003,107760.0,107750.0,0.29899945]
[1748308974351,0.00013879,107770.0,107760.0,0.1855424]
[1748308974556,0.5454722,107770.0,107760.0,0.51084593]
[1748308975159,1.0565603,107780.0,107770.0,0.1855251]
[1748308975351,1.1258603,107780.0,107770.0,0.2972]
[1748308975559,1.1258603,107780.0,107770.0,0.37349179]
[1748308975755,1.1358603,107780.0,107770.0,0.26349179]
[1748308975956,1.1358603,107780.0,107770.0,0.37731174]
[1748308976154,1.1358603,107780.0,107770.0,0.57283684]
[1748308976361,1.0441013,107780.0,107770.0,0.57083684]
[1748308977062,1.0441013,107780.0,107770.0,0.28531174]
[1748308977260,1.0441013,107780.0,107770.0,0.21811174]
[1748308977450,1.0451013,107780.0,107770.0,0.22411174]
[1748308977651,1.1156013,107780.0,107770.0,0.22423174]
[1748308977851,1.66317477,107780.0,107770.0,0.23881174]
[1748308978060,1.66317477,107780.0,107770.0,0.23893174]
[1748308978457,1.4756413,107780.0,107770.0,0.23893174]
[1748308978760,1.4756413,107780.0,107770.0,0.42445684]
[1748308979064,1.4756413,107780.0,107740.0,0.5971923]
[1748308979065,0.1856285,107710.0,107700.0,0.10639242]
[1748308979271,1.89434555,107710.0,107700.0,0.23608083]
[1748308979570,1.00206008,107710.0,107700.0,0.23608083]
[1748308979755,1.32677208,107710.0,107700.0,0.23608083]
[1748308979954,0.36278358,107710.0,107700.0,0.47184653]
[1748308980165,0.96597208,107710.0,107700.0,0.42883148]
[1748308980463,0.78034358,107710.0,107700.0,0.42883148]
[1748308980655,0.96797208,107710.0,107700.0,0.62147718]
[1748308980855,0.78234358,107710.0,107700.0,0.62147718]
[1748308981051,0.42154358,107710.0,107700.0,0.62147718]
[1748308981252,0.00498358,107710.0,107700.0,0.62147718]
[1748308981555,0.00013879,107720.0,107710.0,0.1856285]
[1748308981766,0.41756,107740.0,107730.0,0.2783792]
[1748308982069,0.41718822,107740.0,107730.0,1.23113341]
[1748308982369,0.6391421,107750.0,107730.0,0.41940197]
[1748308982370,0.1855767,107750.0,107730.0,0.41940197]
[1748308982661,0.9640568,107740.0,107730.0,0.55986821]
[1748308982865,0.41768,107740.0,107730.0,0.55873756]
[1748308983065,0.3608,107750.0,107740.0,0.1855768]
[1748308983258,0.59410948,107770.0,107750.0,0.2783279]
[1748308983464,0.95987217,107770.0,107760.0,0.0743118]
[1748308983664,1.73835217,107770.0,107760.0,0.2343118]
[1748308983858,1.73835217,107770.0,107760.0,0.46971541]
[1748308983859,1.14005377,107770.0,107760.0,0.46971541]
[1748308984166,1.32557897,107770.0,107760.0,0.47084606]
[1748308984363,0.72237377,107770.0,107760.0,0.47084606]
[1748308984563,0.72237377,107770.0,107760.0,0.54061541]
[1748308984564,1.14305377,107770.0,107760.0,0.54061541]
[1748308984768,1.14305377,107770.0,107760.0,0.54174606]
[1748308984978,0.72537377,107770.0,107760.0,0.35620366]
[1748308985266,0.72237377,107770.0,107760.0,0.54174606]
[1748308985469,0.73237377,107770.0,107760.0,0.54374606]
[1748308985970,0.10024823,107800.0,107790.0,0.1854908]
[1748308986173,0.42178041,107800.0,107790.0,1.41602145]
[1748308986355,0.42178041,107800.0,107790.0,1.56274146]
[1748308986560,0.83946041,107800.0,107790.0,1.56311324]
[1748308987062,0.61786041,107800.0,107790.0,1.56311324]
[1748308987263,0.50476041,107800.0,107790.0,1.56311324]
[1748308987469,0.08708041,107800.0,107790.0,1.65588123]
[1748308987670,0.00297871,107800.0,107790.0,1.65588123]
[1748308987968,0.00139297,107820.0,107810.0,0.1854564]
[1748308988161,0.58899297,107820.0,107810.0,0.37658705]
[1748308988362,0.17139297,107820.0,107810.0,0.37658705]
[1748308988564,0.58899297,107820.0,107810.0,0.73837884]
[1748308988966,0.17139297,107820.0,107810.0,0.73837884]
[1748308989163,0.58899297,107820.0,107810.0,0.37757884]
[1748308989363,0.17139297,107820.0,107810.0,0.37757884]
[1748308989762,0.58899297,107820.0,107810.0,0.73837884]
[1748308989963,0.17139297,107820.0,107810.0,0.73837884]
[1748308990175,0.5065,107850.0,107840.0,0.1854048]
[1748308990371,1.1041,107850.0,107840.0,0.33653545]
[1748308990569,0.18,107850.0,107840.0,0.48102724]
[1748308990770,0.5976,107850.0,107840.0,0.48102724]
[1748308990967,0.59756,107850.0,107840.0,0.48102724]
[1748308991658,1.1437476,107850.0,107840.0,0.48302724]
[1748308992268,0.95836,107850.0,107840.0,0.48302724]
[1748308992673,0.59756,107850.0,107840.0,0.70032724]
[1748308992875,0.59756,107850.0,107780.0,0.01095013]
[1748308992876,0.1854907,107790.0,107780.0,0.01095013]
[1748308993070,0.1854907,107790.0,107780.0,0.17095013]
[1748308993071,1.39466417,107790.0,107780.0,0.17095013]
[1748308993270,0.1855252,107770.0,107760.0,0.11469023]
[1748308993568,0.1855252,107770.0,107760.0,0.02]
[1748308993762,0.6753852,107770.0,107760.0,0.79519065]
[1748308994067,0.9638852,107770.0,107760.0,0.79519065]
[1748308994258,0.77836,107770.0,107760.0,0.16675065]
[1748308994462,0.77836,107770.0,107760.0,0.79523065]
[1748308994658,0.9638852,107770.0,107760.0,0.79523065]
[1748308994867,0.9658852,107770.0,107760.0,0.80923065]
[1748308995273,0.9658852,107770.0,107760.0,0.17962]
[1748308995584,0.78036,107770.0,107760.0,0.17962]
[1748308995758,0.9658852,107770.0,107760.0,0.3651624]
[1748308995963,0.41956,107770.0,107760.0,0.36629305]
[1748308996163,0.41956,107770.0,107760.0,0.72709305]
[1748308996364,0.002,107770.0,107760.0,1.14438905]
[1748308996668,0.41769879,107780.0,107760.0,1.06961755]
[1748308996862,0.12013879,107780.0,107770.0,1.17597595]
[1748308997063,0.53773879,107780.0,107770.0,1.43487595]
[1748308997262,0.4176,107810.0,107800.0,0.2782063]
[1748308997466,0.6776,107810.0,107800.0,1.08422415]
[1748308997662,0.26,107810.0,107800.0,1.08422415]
[1748308997862,0.26,107810.0,107800.0,1.22312415]
[1748308998272,0.26,107810.0,107800.0,1.58392415]
[1748308998473,0.26,107810.0,107800.0,1.26312415]
[1748308999173,0.4454565,107810.0,107800.0,0.31303065]
[1748308999367,1.1490165,107810.0,107800.0,0.173]
[1748308999677,1.47638997,107810.0,107800.0,0.173]
[1748308999976,1.2888165,107810.0,107800.0,0.173]
[1748309000169,1.17363821,107810.0,107800.0,0.173]
[1748309000365,0.98606474,107810.0,107800.0,0.173]
[1748309000573,1.40362474,107810.0,107800.0,0.175]
[1748309000773,1.40362474,107810.0,107800.0,0.24102]
[1748309000973,1.40362474,107810.0,107800.0,0.17312]
[1748309001173,1.59119821,107810.0,107800.0,0.17312]
[1748309001383,0.98606474,107810.0,107800.0,0.173]
[1748309001576,0.98606464,107810.0,107800.0,0.35972425]
[1748309001768,1.40362464,107810.0,107800.0,0.5027936]
[1748309001974,1.3636164,107810.0,107800.0,0.5027936]
[1748309002176,1.3636164,107810.0,107800.0,0.31732]
[1748309002365,1.17716,107810.0,107800.0,0.5007936]
[1748309002570,1.3636164,107810.0,107800.0,0.5007936]
[1748309002982,0.261,107810.0,107800.0,0.50192425]
[1748309003471,0.67856,107810.0,107800.0,0.50192425]
[1748309003671,1.2248164,107810.0,107800.0,0.31532]
[1748309003969,1.18906,107810.0,107800.0,0.4243736]
[1748309004169,0.6218,107810.0,107800.0,0.31532]
[1748309004381,1.03936,107810.0,107800.0,0.50192425]
[1748309004582,0.261,107810.0,107800.0,0.50192425]
[1748309005180,0.67856,107810.0,107800.0,0.50192425]
[1748309005778,0.67856,107810.0,107790.0,0.00013879]
[1748309005779,1.38212,107810.0,107790.0,0.00013879]
[1748309005980,0.185577,107740.0,107730.0,0.01408493]
[1748309006280,0.1856287,107710.0,107700.0,0.1]
[1748309006577,1.13953178,107710.0,107700.0,0.17]
[1748309006776,0.00099179,107710.0,107700.0,0.5308]
[1748309006979,0.54742049,107710.0,107700.0,0.33980834]
[1748309007183,1.00106849,107710.0,107700.0,0.15035054]
[1748309007371,1.38106849,107710.0,107700.0,0.15035054]
[1748309007571,1.39492072,107710.0,107700.0,0.15023054]
[1748309007779,0.92207272,107710.0,107700.0,0.15035054]
[1748309007979,1.24307272,107710.0,107700.0,0.31133054]
[1748309008178,1.24307272,107710.0,107700.0,0.31145054]
[1748309008477,1.66059272,107710.0,107700.0,0.31145054]
[1748309008981,1.66159272,107710.0,107700.0,0.50209654]
[1748309009181,1.23022049,107710.0,107700.0,0.31645054]
[1748309009371,0.60626049,107710.0,107700.0,0.50209654]
[1748309009680,0.42063179,107710.0,107700.0,0.50209654]
[1748309009880,0.96706059,107710.0,107700.0,1.12633654]
[1748309010077,0.96706059,107710.0,107700.0,1.39633654]
[1748309010279,0.00299179,107710.0,107700.0,1.39633654]
[1748309010601,0.42063179,107710.0,107700.0,1.39633654]
[1748309010777,0.00299179,107710.0,107700.0,1.75713654]
[1748309010980,0.42063179,107710.0,107700.0,1.39633654]
[1748309011285,0.00299179,107710.0,107700.0,1.75713654]
[1748309011469,0.41777879,107720.0,107710.0,0.1856287]
[1748309011674,0.41777879,107720.0,107710.0,0.6037287]
[1748309011982,0.77857879,107720.0,107710.0,0.61823704]
[1748309012177,0.36093879,107720.0,107710.0,1.24259704]
[1748309012481,0.41785879,107720.0,107710.0,1.24259704]
[1748309012682,0.41885879,107720.0,107710.0,1.24671704]
[1748309013483,0.41885879,107720.0,107710.0,1.25171704]
[1748309014181,0.00113879,107720.0,107710.0,1.25171704]
[1748309014374,0.41885879,107720.0,107710.0,1.25171704]
[1748309014576,0.41885879,107720.0,107710.0,1.33141704]
[1748309014771,0.00113879,107720.0,107710.0,1.69221704]
[1748309015076,0.41885879,107720.0,107710.0,1.69221704]
[1748309015272,0.36117178,107740.0,107710.0,1.69221704]
[1748309015576,0.0463859,107760.0,107720.0,1.099039]
[1748309015773,0.2319451,107760.0,107750.0,0.3608]
[1748309015978,0.6391197,107760.0,107750.0,0.13]
[1748309016179,0.5927174,107770.0,107750.0,0.33043042]
[1748309016379,0.77665997,107760.0,107750.0,0.05045891]
[1748309016583,0.0463961,107740.0,107710.0,0.00212]
[1748309016888,0.0464072,107710.0,107670.0,0.4536448]
[1748309017079,0.0464072,107710.0,107660.0,0.6433929]
[1748309017080,0.4536455,107680.0,107660.0,0.6433929]
[1748309017279,0.41809178,107670.0,107660.0,1.453508]
[1748309017482,0.41809178,107670.0,107660.0,1.333508]
[1748309017672,0.41871179,107670.0,107660.0,0.6435129]
[1748309017879,0.41871179,107670.0,107660.0,0.468308]
[1748309018079,0.72871179,107670.0,107660.0,0.829108]
[1748309018286,0.4036183,107670.0,107660.0,1.453708]
[1748309019175,0.00099179,107670.0,107660.0,1.453708]
[1748309019487,0.00099179,107670.0,107660.0,1.461708]
[1748309019784,0.00199179,107670.0,107660.0,1.470708]
[1748309022783,0.18768959,107670.0,107660.0,0.01712]